fUSD/lending_fUSD_20241008
["ID","MTS","AMOUNT","RATE_DAILY","PERIOD"]
[340035269,1728345608236,-156.46,0.00010232,2]
[340035270,1728345629471,222.0,0.00015,30]
[340035271,1728345663933,255.0,0.00016,30]
[340035272,1728345711455,243.54,8.49e-05,2]
[340035273,1728345711476,291.47,8.49e-05,2]
[340035368,1728346005370,1941.69291641,0.00010163,2]
[340035370,1728346092636,250.0,0.00010152,2]
[340035374,1728346121133,22883.98,0.00010221,2]
[340035377,1728346175431,-164.22,0.00010234,2]
[340035378,1728346175451,-203.58,0.0001027,2]
[340035379,1728346175472,-253.79,0.00010281,2]
[340035380,1728346175490,-500.0,0.00010281,2]
[340035381,1728346175602,-528.69,0.00010282,2]
[340035382,1728346175622,-324.34,0.00010302,2]
[340035383,1728346175641,-859.149764,0.0001033,2]
[340035388,1728346231873,-140.850236,0.0001033,2]
[340035389,1728346231883,-250.0,0.00010333,2]
[340035390,1728346231893,-499.99,0.00010336,2]
[340035391,1728346231902,-396.65,0.00010336,2]
[340035392,1728346231911,-178.65102711,0.00010754,2]
[340035393,1728346231922,-329.14260328,0.00010754,2]
[340035394,1728346231934,-27.21636961,0.00010754,2]
[340035395,1728346231943,-272.78363039,0.0001078,2]
[340035396,1728346231954,-122.37736961,0.0001078,2]
[340035397,1728346231963,-158.72,0.0001078,2]
[340035398,1728346231973,-150.0,0.00010899,2]
[340035399,1728346231982,-221.17235984,0.00010899,2]
[340035400,1728346231997,-78.82764016,0.00010899,2]
[340035401,1728346232007,-824.0153,0.000109,2]
[340035402,1728346232016,-1204.4553,0.000109,2]
[340035403,1728346232025,-1061.21205437,0.000109,2]
[340035404,1728346232037,-6485.76551206,0.000109,2]
[340035405,1728346232088,-682.19,0.000109,2]
[340035415,1728346238283,-23039.79552983,0.000109,2]
[340035416,1728346238295,-20368.28711624,0.000109,2]
[340035417,1728346238306,-4500.5548875,0.000109,2]
[340035419,1728346238315,-160.16570417,0.000109,2]
[340035421,1728346238325,-500.0,0.000109,2]
[340035423,1728346238334,-30706.6963,0.000109,2]
[340035425,1728346238343,-156.28090448,0.000109,2]
[340035427,1728346238352,-4318.92407435,0.000109,2]
[340035429,1728346238362,-54045.74898181,0.000109,2]
[340035431,1728346238373,-33119.6434447,0.000109,2]
[340035433,1728346238384,-565.54412118,0.000109,2]
[340035435,1728346238396,-2926.27464045,0.000109,2]
[340035446,1728346239879,-3705.05,0.000109,2]
[340035447,1728346239933,-883.29999,0.000109,2]
[340035448,1728346239988,-3868.2,0.000109,2]
[340035449,1728346239999,-934.73012024,0.000109,2]
[340035450,1728346240042,-13140.53240162,0.000109,2]
[340035451,1728346240052,-2822.12443477,0.000109,2]
[340035452,1728346240061,-1438.5871,0.000109,2]
[340035453,1728346240071,-163.21,0.00010959,2]
[340035454,1728346240080,-250.0,0.00010959,2]
[340035455,1728346240090,-160.42,0.00010959,2]
[340035456,1728346240099,-157.06,0.00010959,2]
[340035457,1728346240109,-686.52,0.00010959,2]
[340035458,1728346240118,-150.01,0.00010999,2]
[340035459,1728346240128,-781.0,0.00011,2]
[340035460,1728346240138,-634.0,0.00011,2]
[340035461,1728346240147,-438447.30980467,0.00011,2]
[340035462,1728346240159,-5456.23636126,0.00011,2]
[340035463,1728346240171,-3504.1443,0.00011,2]
[340035464,1728346240183,-1504.8021717,0.00011,2]
[340035465,1728346240202,-645.19812045,0.00011,2]
[340035466,1728346240213,-1261.07104909,0.00011,2]
[340035467,1728346240224,-1008.91552831,0.00011,2]
[340035468,1728346240235,-322.56152394,0.00011,2]
[340035469,1728346240246,-1367.76559331,0.00011,2]
[340035478,1728346242924,-272.28229195,0.000109,2]
[340035479,1728346242934,-104.83463914,0.00011,2]
[340035480,1728346242944,-1517905.03173948,0.00011,2]
[340035481,1728346242956,-457.46219434,0.00011,2]
[340035482,1728346242967,-265.6000002,0.00011,2]
[340035483,1728346242978,-653.31270692,0.00011,2]
[340035484,1728346243189,-2180.37715403,0.00011,2]
[340035485,1728346243210,-0.10177753,0.00011,2]
[340035486,1728346243243,-1079.31918,0.00011,2]
[340035494,1728346245978,-706.0,0.00011,2]
[340035495,1728346245987,-267.24910627,0.00011,2]
[340035496,1728346245998,-343.53915486,0.00011,2]
[340035497,1728346246009,-522.01898272,0.00011,2]
[340035498,1728346246104,-3866.53997901,0.00011,2]
[340035499,1728346246115,-668.30843146,0.00011,2]
[340035500,1728346246149,-3700.0,0.00011,2]
[340035501,1728346246194,-1240.04908422,0.00011,2]
[340035503,1728346246206,-416.0689448,0.00011,2]
[340035504,1728346246217,-47387.96708831,0.00011,2]
[340035506,1728346255334,1482.59152281,0.00010999,3]
[340035508,1728346265708,1300.0,0.000103,3]
[340035509,1728346267803,2600.0,0.000104,3]
[340035510,1728346269902,3900.0,0.000105,3]
[340035511,1728346272009,5200.0,0.000106,3]
[340035512,1728346274111,6500.0,0.000107,3]
[340035513,1728346276333,1300.0,0.000108,3]
[340035514,1728346278306,1300.0,0.000109,3]
[340035515,1728346334452,-150.0,0.00010899,2]
[340035516,1728346334472,-300.0,0.00010899,2]
[340035517,1728346334492,-4600.0,0.000109,2]
[340035518,1728346349031,511.23,9.574e-05,2]
[340035519,1728346361787,161.07845588,0.00023,60]
[340035522,1728346686735,250.0,0.00010194,2]
[340035523,1728346745099,304.79,0.00010187,2]
[340035524,1728346768448,155.4,0.00010187,2]
[340035525,1728346795233,664.92,0.00010185,2]
[340035526,1728346796894,23900.0,0.00010185,2]
[340035527,1728346802940,150.0,0.00010187,2]
[340035528,1728346803204,150.0,0.00010187,2]
[340035529,1728346803579,150.0,0.00010187,2]
[340035530,1728346804051,150.0,0.00010187,2]
[340035531,1728346804244,150.0,0.00010187,2]
[340035532,1728346804474,225.81542262,0.00010187,2]
[340035533,1728346853829,1216.99,0.00010189,2]
[340035534,1728346896175,515.15,8.248e-05,2]
[340035535,1728346933878,154.0,0.00010149,2]
[340035538,1728346959240,1000.0,0.00010149,2]
[340035541,1728346976923,150.68,0.0001023,2]
[340035542,1728347033419,440.34,0.00010119,2]
[340035543,1728347049916,500.0,0.00023,120]
[340035546,1728347057388,1233.66,0.00010092,2]
[340035547,1728347077237,802.28,0.0001014,2]
[340035548,1728347125640,8192.48,0.00010113,2]
[340035549,1728347194153,-200.0,0.00010244,2]
[340035550,1728347194173,-68.58231972,0.0001025,2]
[340035551,1728347235951,500.0,0.0001019,2]
[340035552,1728347243340,200.0,0.0001019,2]
[340035553,1728347267481,171.67,0.0001019,2]
[340035554,1728347281834,160.2362786,0.00010201,2]
[340035555,1728347306595,23900.0,0.00010177,2]
[340035581,1728347377807,250.0,0.00010163,2]
[340035593,1728347432021,-397.08384421,0.00010291,2]
[340035600,1728347432081,-559.41615579,0.00010291,2]
[340035603,1728347432090,-172.57,0.00010297,2]
[340035605,1728347432100,-200.0,0.00010301,2]
[340035606,1728347432108,-406.38,0.00010333,2]
[340035608,1728347432118,-250.0,0.00010333,2]
[340035610,1728347432127,-4855.54321732,0.00010333,2]
[340035613,1728347432139,-258.76851609,0.00010333,2]
[340035615,1728347432151,-1505.59239433,0.00010333,2]
[340035617,1728347432160,-72.96517382,0.00010512,2]
[340035619,1728347432171,-442.18482618,0.00010512,2]
[340035620,1728347432180,-160.2362786,0.000107,2]
[340035622,1728347432190,-220.07889522,0.00010799,2]
[340035624,1728347432205,-79.92110478,0.00010799,2]
[340035625,1728347432215,-150.0,0.00010799,2]
[340035627,1728347432225,-89.93927721,0.000108,2]
[340035637,1728347432344,-1817.0535657,0.000108,2]
[340035671,1728347438208,-849.39240122,0.000108,2]
[340035672,1728347438219,-2513.85068456,0.000108,2]
[340035673,1728347438229,-43704.14999999,0.000108,2]
[340035674,1728347438242,-896.54677076,0.000108,2]
[340035675,1728347438319,-1216.02192436,0.000108,2]
[340035680,1728347440058,-3249.95340702,0.000108,2]
[340035681,1728347440164,-38.79495684,0.000108,2]
[340035682,1728347440175,-753.83647302,0.000108,2]
[340035683,1728347440218,-306.09729367,0.000108,2]
[340035684,1728347440229,-304.5,0.000108,2]
[340035685,1728347440240,-526.41,0.000108,2]
[340035686,1728347440251,-1621.13785174,0.000108,2]
[340035687,1728347440262,-2183.928432,0.000108,2]
[340035688,1728347440273,-2068.75886191,0.000108,2]
[340035689,1728347440282,-209.837,0.000108,2]
[340035690,1728347440291,-1557.20429787,0.000108,2]
[340035691,1728347440302,-1344.28590213,0.000108,2]
[340035692,1728347440311,-509.5205,0.000108,2]
[340035693,1728347440321,-13694.5157,0.000108,2]
[340035694,1728347440331,-499.99,0.00010859,2]
[340035695,1728347440431,-3420.48617313,0.00010899,2]
[340035696,1728347440441,-52560.98231082,0.000109,2]
[340035703,1728347443171,-338.94299958,0.000109,2]
[340035704,1728347443264,-29.84247993,0.000109,2]
[340035705,1728347443361,-0.41190403,0.000109,2]
[340035706,1728347443374,-291.59768324,0.000109,2]
[340035707,1728347443451,-313.75221724,0.000109,2]
[340035708,1728347443462,-41864.47040516,0.000109,2]
[340035709,1728347443471,-9154.644866,0.000109,2]
[340035710,1728347443480,-244265.905,0.000109,2]
[340035711,1728347443489,-747.4548,0.000109,2]
[340035712,1728347443498,-185.1600805,0.000109,2]
[340035713,1728347443508,-281.07078781,0.000109,2]
[340035714,1728347443517,-158.88,0.00010959,2]
[340035715,1728347443527,-177.38,0.00010959,2]
[340035716,1728347443536,-150.0,0.00010959,2]
[340035717,1728347443545,-160.59,0.00010959,2]
[340035718,1728347443554,-181.04,0.00010959,2]
[340035719,1728347443563,-25358.55,0.00010959,2]
[340035721,1728347443572,-340.45,0.00010959,2]
[340035723,1728347443581,-283.71,0.00010959,2]
[340035724,1728347443590,-236.42,0.00010959,2]
[340035725,1728347443599,-197.02,0.00010959,2]
[340035726,1728347443607,-164.18,0.00010959,2]
[340035727,1728347443616,-250.0,0.00010959,2]
[340035728,1728347443625,-820.94,0.00010959,2]
[340035729,1728347443634,-500.0,0.00010973,2]
[340035730,1728347443643,-347.46876956,0.0001099,2]
[340035731,1728347443652,-347.46876956,0.0001099,2]
[340035732,1728347443661,-347.46876956,0.0001099,2]
[340035733,1728347443670,-7598.96018838,0.00010997,2]
[340035734,1728347443679,-1082.3707235,0.00010998,2]
[340035735,1728347443688,-2851.5920067,0.00010998,2]
[340035736,1728347443697,-222.7599244,0.00010998,2]
[340035737,1728347443706,-18286.9592837,0.00010998,2]
[340035738,1728347443715,-190.00122218,0.00010999,2]
[340035739,1728347443725,-622.34058628,0.00010999,2]
[340035740,1728347443734,-634.0,0.00011,2]
[340035741,1728347443743,-15838.32534119,0.00011,2]
[340035742,1728347444228,-67169.98483464,0.00011,2]
[340035749,1728347446123,-6682.94677235,0.000108,2]
[340035750,1728347446132,-14203.43990088,0.00011,2]
[340035751,1728347446287,-4855.4545189,0.00011,2]
[340035757,1728347891199,16173.01660065,0.00010211,2]
[340035758,1728347891226,7726.98339935,0.00010211,2]
[340035759,1728347913965,200.0,0.00010188,2]
[340035760,1728347973956,250.0,0.00010185,2]
[340035762,1728348018432,171.56,0.00010208,2]
[340035763,1728348018638,171.56,0.00010211,2]
[340035764,1728348019069,171.56,0.00010213,2]
[340035765,1728348019344,171.56,0.00010216,2]
[340035766,1728348019769,171.56,0.00010219,2]
[340035767,1728348019988,171.56,0.00010221,2]
[340035768,1728348020417,171.56,0.00010224,2]
[340035769,1728348020854,171.56,0.00010227,2]
[340035770,1728348021068,171.56,0.00010229,2]
[340035771,1728348071018,164.22,9.818e-05,2]
[340035772,1728348128507,1141.79,9.818e-05,2]
[340035773,1728348200662,250.0,9.837e-05,2]
[340035774,1728348231423,1000.0,0.00023,60]
[340035775,1728348251609,1000.0,0.00011,3]
[340035776,1728348253576,155.28,9.877e-05,2]
[340035777,1728348254376,561.44,8.219e-05,2]
[340035778,1728348260682,620.31264467,0.00011,4]
[340035779,1728348260705,386.85735533,0.00011,4]
[340035780,1728348329592,500.0,9.778e-05,2]
[340035781,1728348339212,1000.0,9.829e-05,2]
[340035782,1728348420497,200.0,0.00023,60]
[340035783,1728348443784,1000.0,0.00014,10]
[340035784,1728348449619,23900.0,9.808e-05,2]
[340035785,1728348472983,200.0,9.808e-05,2]
[340035786,1728348475003,933.2502093,0.00023,120]
[340035787,1728348483068,250.0,9.836e-05,2]
[340035790,1728348569176,-171.56,0.00010232,2]
[340035791,1728348569197,-171.56,0.00010235,2]
[340035792,1728348569216,-171.56,0.00010238,2]
[340035793,1728348569235,-171.56,0.0001024,2]
[340035794,1728348569255,-171.56,0.00010243,2]
[340035795,1728348569275,-171.56,0.00010246,2]
[340035796,1728348569294,-171.56,0.00010248,2]
[340035797,1728348569313,-171.56,0.00010251,2]
[340035798,1728348569332,-171.56,0.00010254,2]
[340035799,1728348569351,-171.56,0.00010256,2]
[340035800,1728348569373,-171.56,0.00010259,2]
[340035801,1728348569473,-44.07622188,0.00010275,2]
[340035810,1728348632181,-228.23,0.00010239,2]
[340035811,1728348632190,-127.95377812,0.00010275,2]
[340035812,1728348632199,-50.59474203,0.00010315,2]
[340035813,1728348632238,-99.40525797,0.00010315,2]
[340035814,1728348632247,-201.88483163,0.00010333,2]
[340035815,1728348632258,-128.92516837,0.00010333,2]
[340035816,1728348632267,-509.60979601,0.00010469,2]
[340035817,1728348632279,-51.83020399,0.00010469,2]
[340035818,1728348632288,-457.382313,0.00010745,2]
[340035819,1728348632299,-199.57534806,0.00010781,2]
[340035820,1728348632317,-600.81924,0.00010781,2]
[340035821,1728348632329,-2013.60541194,0.00010781,2]
[340035822,1728348632338,-1229.5729,0.000108,2]
[340035823,1728348632348,-84.78295345,0.00010898,2]
[340035824,1728348632359,-176.77004655,0.00010898,2]
[340035825,1728348632368,-150.0,0.00010899,2]
[340035826,1728348632377,-1225.65354945,0.000109,2]
[340035827,1728348632389,-30.59645055,0.000109,2]
[340035828,1728348632399,-2078.840963,0.000109,2]
[340035829,1728348632410,-658.25,0.000109,2]
[340035830,1728348632422,-5104.91473355,0.000109,2]
[340035831,1728348635083,-570.09,0.000109,2]
[340035832,1728348635140,-8681.39510219,0.000109,2]
[340035833,1728348635152,-15798.05542308,0.000109,2]
[340035834,1728348635163,-502.63712399,0.000109,2]
[340035835,1728348635175,-548.16321584,0.000109,2]
[340035839,1728348638316,-450.87290596,0.000109,2]
[340035840,1728348638328,-1177.0,0.000109,2]
[340035841,1728348638340,-6628.30439943,0.000109,2]
[340035842,1728348638375,-281.55,0.000109,2]
[340035843,1728348638386,-592.08569065,0.000109,2]
[340035844,1728348638397,-464.49215407,0.000109,2]
[340035845,1728348638409,-10034.10378824,0.000109,2]
[340035846,1728348638419,-4435.86468314,0.000109,2]
[340035847,1728348638482,-1851.34130064,0.000109,2]
[340035848,1728348638493,-729.82228752,0.000109,2]
[340035849,1728348638504,-179.3064287,0.000109,2]
[340035850,1728348638513,-110.0938342,0.000109,2]
[340035851,1728348638525,-75.06624627,0.000109,2]
[340035852,1728348638534,-2028.9008,0.000109,2]
[340035853,1728348638543,-150.44,0.00010959,2]
[340035854,1728348638554,-177.38,0.00010959,2]
[340035855,1728348638563,-160.86,0.00010959,2]
[340035856,1728348638573,-150.0,0.00010959,2]
[340035857,1728348638582,-506.7,0.00010959,2]
[340035858,1728348638591,-422.25,0.00010959,2]
[340035859,1728348638600,-250.0,0.00010959,2]
[340035861,1728348638610,-351.87,0.00010959,2]
[340035863,1728348638619,-293.23,0.00010959,2]
[340035864,1728348638628,-244.35,0.00010959,2]
[340035865,1728348638637,-203.63,0.00010959,2]
[340035866,1728348638647,-169.69,0.00010959,2]
[340035867,1728348638656,-848.48,0.00010959,2]
[340035868,1728348638665,-385.85,0.00010997,2]
[340035869,1728348638675,-4202.29756656,0.00010997,2]
[340035870,1728348638694,-2183.16426548,0.00010997,2]
[340035871,1728348638705,-273.2828905,0.00010997,2]
[340035872,1728348638715,-594.5,0.00010997,2]
[340035873,1728348638727,-156.43034593,0.00010997,2]
[340035874,1728348638736,-435.6384104,0.00010999,2]
[340035875,1728348638745,-500.0,0.00010999,2]
[340035876,1728348638755,-500.0,0.00010999,2]
[340035878,1728348638763,-500.0,0.00010999,2]
[340035880,1728348638773,-500.0,0.00010999,2]
[340035881,1728348638783,-439.55981592,0.00010999,2]
[340035883,1728348638792,-21997.97142775,0.00011,2]
[340035885,1728348638804,-7984.48827585,0.00011,2]
[340035887,1728348638815,-10135.65999346,0.00011,2]
[340035890,1728348638826,-16381.48089212,0.00011,2]
[340035912,1728348640363,-590.3446827,0.00011,2]
[340035913,1728348640374,-4117.89691442,0.00011,2]
[340035914,1728348640386,-624.97,0.00011,2]
[340035952,1728348643238,-167975.93750219,0.00011,2]
[340035953,1728348643250,-435.216782,0.00011,2]
[340035954,1728348643260,-2732.42500939,0.00011,2]
[340035955,1728348643271,-20983.690308,0.00011,2]
[340035956,1728348643294,-22850.13228136,0.00011,2]
[340035957,1728348643307,-6020.00259753,0.00011,2]
[340035958,1728348643317,-3664.28065587,0.00011,2]
[340035959,1728348643329,-3397.76989014,0.00011,2]
[340035960,1728348643339,-1269.05719409,0.00011,2]
[340035961,1728348643350,-36597.54571064,0.00011,2]
[340035962,1728348643361,-500.0,0.00011,2]
[340035963,1728348643372,-769.133491,0.00011,2]
[340035964,1728348643383,-18847.96200157,0.00011,2]
[340035965,1728348643394,-3011.29539032,0.00011,2]
[340035966,1728348643405,-511.74477419,0.00011,2]
[340035967,1728348643415,-1836.32055326,0.00011,2]
[340035968,1728348643426,-1210.0,0.00011,2]
[340035969,1728348643438,-9245.25,0.00011,2]
[340035970,1728348643467,-4783.16,0.00011,2]
[340035971,1728348643523,-2829.58704795,0.00011,2]
[340035979,1728348646423,-10019.09632223,0.00011,2]
[340035980,1728348646477,-1301.37556257,0.00011,2]
[340035986,1728348812562,200.0,0.00014,10]
[340035987,1728348860171,553.8,9.066e-05,2]
[340035988,1728348993304,263.93662768,0.00010169,2]
[340035989,1728349019718,250.0,0.00012,6]
[340035990,1728349069931,250.0,0.00012,6]
[340035992,1728349095802,23900.0,0.00010183,2]
[340035993,1728349114888,189.06,0.00010165,2]
[340035994,1728349146483,151.38,0.00010219,2]
[340035995,1728349181064,250.0,0.00010156,2]
[340035996,1728349207519,1197.95,0.00010105,2]
[340035997,1728349230474,151.75,8.116e-05,2]
[340035998,1728349328728,155.15,0.00010139,2]
[340035999,1728349405280,800.0,0.0001011,2]
[340036000,1728349418602,250.0,0.00010109,2]
[340036001,1728349442819,258.56,0.00010154,2]
[340036002,1728349587561,581.71,8.239e-05,2]
[340036003,1728349646669,200.0,0.00010161,2]
[340036004,1728349664846,23900.0,0.00010161,2]
[340036018,1728349717986,2031.0,0.00010163,2]
[340036019,1728349735241,250.0,0.00010163,2]
[340036020,1728349767588,151.75,8.109e-05,2]
[340036021,1728349768967,175.75,0.00010136,2]
[340036022,1728349828583,886.97,0.00010153,2]
[340036026,1728349831434,-151.38,0.00010236,2]
[340036027,1728349831445,-171.88,0.00010243,2]
[340036028,1728349831455,-151.38,0.00010253,2]
[340036029,1728349831465,-200.0,0.00010269,2]
[340036030,1728349831475,-151.38,0.0001027,2]
[340036031,1728349831484,-581.71,0.00010503,2]
[340036032,1728349831494,-150.0,0.00010799,2]
[340036033,1728349831503,-552.66157665,0.000108,2]
[340036034,1728349831516,-20.05827623,0.000108,2]
[340036035,1728349831527,-585.98442377,0.000108,2]
[340036036,1728349831537,-214.6745,0.000108,2]
[340036037,1728349831546,-26.47819908,0.000108,2]
[340036038,1728349831557,-482.73538408,0.000108,2]
[340036039,1728349831569,-966.10851684,0.000108,2]
[340036040,1728349831579,-1221.3552,0.000108,2]
[340036041,1728349831588,-194.02598863,0.000108,2]
[340036042,1728349831603,-785.42033485,0.000108,2]
[340036043,1728349831615,-978.74697652,0.000108,2]
[340036044,1728349831624,-499.99,0.000108,2]
[340036045,1728349831634,-2004.617,0.000108,2]
[340036046,1728349831643,-262.1817,0.000108,2]
[340036047,1728349831653,-1226.69,0.00010898,2]
[340036048,1728349831662,-4790.74505677,0.00010899,2]
[340036049,1728349831671,-1605.4499,0.000109,2]
[340036050,1728349831681,-9154.644866,0.000109,2]
[340036051,1728349831690,-13214.02853379,0.000109,2]
[340036052,1728349831702,-517.85511205,0.000109,2]
[340036053,1728349831713,-1066.56431726,0.000109,2]
[340036054,1728349831739,-2909.42136035,0.0001027,2]
[340036055,1728349831751,-4389.76028275,0.0001027,2]
[340036057,1728349831765,-1453.76475713,0.0001027,2]
[340036059,1728349831774,-7072.11619557,0.000109,2]
[340036061,1728349831785,-2233.34465828,0.000109,2]
[340036082,1728349837571,-4340.75595051,0.000109,2]
[340036083,1728349837805,-7135.51708441,0.000109,2]
[340036084,1728349837817,-1803.988746,0.000109,2]
[340036085,1728349837925,-9575.76920669,0.000109,2]
[340036087,1728349837936,-22146.78800938,0.000109,2]
[340036088,1728349837947,-279.39320231,0.000109,2]
[340036089,1728349837958,-325.12597568,0.000109,2]
[340036091,1728349839475,-561.22489336,0.000109,2]
[340036092,1728349839751,-173993.43311471,0.000109,2]
[340036093,1728349839760,-747.4548,0.000109,2]
[340036094,1728349839772,-825.9243,0.000109,2]
[340036095,1728349839782,-552.66157666,0.000109,2]
[340036096,1728349839791,-7500.0,0.000109,2]
[340036097,1728349839800,-176.43212467,0.000109,2]
[340036098,1728349839809,-1612.0,0.000109,2]
[340036100,1728349839819,-153.19765679,0.000109,2]
[340036102,1728349839828,-153.19765679,0.000109,2]
[340036103,1728349839837,-153.19765679,0.000109,2]
[340036105,1728349839847,-175.19255356,0.000109,2]
[340036107,1728349839856,-500.0,0.00010958,2]
[340036108,1728349839865,-500.0,0.00010958,2]
[340036109,1728349839874,-498.17387187,0.00010958,2]
[340036111,1728349839885,-163.21,0.00010959,2]
[340036113,1728349839895,-177.39,0.00010959,2]
[340036114,1728349839904,-150.63,0.00010959,2]
[340036115,1728349839914,-150.0,0.00010959,2]
[340036116,1728349839924,-250.0,0.00010959,2]
[340036117,1728349839934,-340.45,0.00010959,2]
[340036118,1728349839943,-283.71,0.00010959,2]
[340036119,1728349839954,-500.0,0.00010973,2]
[340036120,1728349839964,-181.04,0.00010975,2]
[340036121,1728349839974,-347.46876956,0.0001099,2]
[340036122,1728349839983,-347.46876956,0.0001099,2]
[340036123,1728349839993,-347.46876956,0.0001099,2]
[340036124,1728349840003,-8662.2786586,0.00010997,2]
[340036125,1728349840013,-236.4755037,0.00010997,2]
[340036126,1728349840024,-7598.96018838,0.00010997,2]
[340036127,1728349840033,-190.00122218,0.00010999,2]
[340036128,1728349840043,-491.64906316,0.00010999,2]
[340036129,1728349840054,-194.15434421,0.00010999,2]
[340036130,1728349840064,-538.0,0.00011,2]
[340036131,1728349840074,-120007.20816392,0.00011,2]
[340036140,1728349842976,-13.13532267,0.000109,2]
[340036145,1728349915540,900.0,0.0001017,2]
[340036146,1728349938885,1428.7982,0.0001017,2]
[340036147,1728350155569,576.85,8.37e-05,2]
[340036148,1728350350839,588.37,0.00010202,2]
[340036149,1728350351087,588.37,0.00010205,2]
[340036150,1728350351361,588.37,0.00010207,2]
[340036151,1728350351573,588.37,0.0001021,2]
[340036152,1728350351807,588.37,0.00010213,2]
[340036153,1728350352238,588.37,0.00010216,2]
[340036154,1728350352669,588.37,0.00010218,2]
[340036155,1728350353325,588.37,0.00010221,2]
[340036156,1728350353550,588.37,0.00010224,2]
[340036157,1728350353778,588.37,0.00010226,2]
[340036158,1728350354095,588.37,0.00010229,2]
[340036159,1728350361223,1749.19,9.951e-05,2]
[340036160,1728350363421,-209.6360951,0.00010232,2]
[340036161,1728350364272,-200.0,0.00010232,2]
[340036162,1728350366096,-170.63,0.00010232,2]
[340036163,1728350418414,155.15,0.00010045,2]
[340036164,1728350445175,640.0,9.878e-05,2]
[340036165,1728350494123,1073.23,9.916e-05,2]
[340036166,1728350509337,1548.95,9.867e-05,2]
[340036167,1728350533852,250.0,9.867e-05,2]
[340036168,1728350534287,1078.77,9.867e-05,2]
[340036169,1728350553346,250.0,9.855e-05,2]
[340036170,1728350583654,906.62,9.855e-05,2]
[340036171,1728350683202,370.63,9.855e-05,2]
[340036172,1728350693461,579.77,8.219e-05,2]
[340036173,1728350746499,171.6,9.841e-05,2]
[340036174,1728350752771,23900.0,9.841e-05,2]
[340036175,1728350841346,9939.61,9.879e-05,2]
[340036176,1728350848221,150.17,9.879e-05,2]
[340036177,1728350894569,189.06,9.879e-05,2]
[340036196,1728351010863,735.91,9.94e-05,2]
[340036200,1728351031753,-8.1039049,0.00010232,2]
[340036201,1728351031763,-588.37,0.00010234,2]
[340036202,1728351031772,-588.37,0.00010237,2]
[340036204,1728351031783,-588.37,0.0001024,2]
[340036205,1728351031792,-588.37,0.00010242,2]
[340036207,1728351031801,-578.77072278,0.00010242,2]
[340036225,1728351037944,-163.15937032,0.00010242,2]
[340036226,1728351037953,-436.12063058,0.00010245,2]
[340036227,1728351037965,-152.24936942,0.00010245,2]
[340036228,1728351037974,-588.37,0.00010248,2]
[340036229,1728351037983,-588.37,0.0001025,2]
[340036230,1728351037992,-179.58186509,0.0001025,2]
[340036231,1728351038004,-292.67813491,0.0001025,2]
[340036232,1728351038013,-588.37,0.00010253,2]
[340036233,1728351038022,-499.99,0.00010253,2]
[340036234,1728351038031,-2222.2,0.00010253,2]
[340036235,1728351038041,-150.99,0.00010253,2]
[340036236,1728351038050,-174.41,0.00010284,2]
[340036237,1728351038060,-579.77,0.00010469,2]
[340036238,1728351038069,-1001.65284948,0.000107,2]
[340036239,1728351038082,-725.82925052,0.000107,2]